[Event "Titled Tuesday Blitz October 26 2021"]
[White "Molina, Roberto Junio Brito"]
[Black "Erdogdu, Mert"]
[WhiteFideId "2109450"]
[BlackFideId "6301495"]
[WhiteElo "2402"]
[BlackElo "2485"]
[Result "0-1"]
[Round "06"]
[TimeControl "180+1"]
[Date "2021.10.26"]
[WhiteClock "0:00:06"]
[BlackClock "0:00:19"]

1. d4 {[%clk 0:03:00]}  d5 {[%clk 0:03:00]} 2. c4 {[%clk 0:02:59]}  e6 {[%clk 0:03:00]} 3. Nc3 {[%clk 0:02:59]}  c5 {[%clk 0:03:00]} 4. cxd5 {[%clk 0:02:58]}  exd5 {[%clk 0:03:01]} 5. Nf3 {[%clk 0:02:58]}  Nc6 {[%clk 0:03:02]} 6. e3 {[%clk 0:02:58]}  Nf6 {[%clk 0:03:01]} 7. Bb5 {[%clk 0:02:57]}  Bd6 {[%clk 0:03:01]} 8. dxc5 {[%clk 0:02:56]}  Bxc5 {[%clk 0:03:02]} 9. O-O {[%clk 0:02:57]}  O-O {[%clk 0:03:02]} 10. b3 {[%clk 0:02:55]}  a6 {[%clk 0:02:53]} 11. Be2 {[%clk 0:02:54]}  Ba7 {[%clk 0:02:47]} 12. Ba3 {[%clk 0:02:52]}  Re8 {[%clk 0:02:47]} 13. Rc1 {[%clk 0:02:50]}  Bf5 {[%clk 0:02:30]} 14. Na4 {[%clk 0:02:49]}  d4 {[%clk 0:02:16]} 15. exd4 {[%clk 0:02:44]}  Nxd4 {[%clk 0:02:13]} 16. Nxd4 {[%clk 0:02:45]}  Bxd4 {[%clk 0:02:08]} 17. Bf3 {[%clk 0:02:34]}  Ne4 {[%clk 0:01:55]} 18. Bb2 {[%clk 0:02:22]}  Bxb2 {[%clk 0:01:30]} 19. Nxb2 {[%clk 0:02:22]}  Qf6 {[%clk 0:01:29]} 20. Bxe4 {[%clk 0:02:15]}  Bxe4 {[%clk 0:01:25]} 21. Nc4 {[%clk 0:02:14]}  Rad8 {[%clk 0:01:21]} 22. Qg4 {[%clk 0:02:11]}  Bc6 {[%clk 0:01:09]} 23. h3 {[%clk 0:01:58]}  Rd4 {[%clk 0:01:03]} 24. Qg3 {[%clk 0:01:53]}  h5 {[%clk 0:01:01]} 25. Rfe1 {[%clk 0:01:50]}  Rxe1+ {[%clk 0:00:55]} 26. Rxe1 {[%clk 0:01:51]}  h4 {[%clk 0:00:55]} 27. Qb8+ {[%clk 0:01:03]}  Kh7 {[%clk 0:00:55]} 28. Qe5 {[%clk 0:00:56]}  Qg6 {[%clk 0:00:43]} 29. Ne3 {[%clk 0:00:56]}  Re4 {[%clk 0:00:42]} 30. Qb2 {[%clk 0:00:47]}  f5 {[%clk 0:00:39]} 31. f3 {[%clk 0:00:44]}  Re6 {[%clk 0:00:37]} 32. Qf2 {[%clk 0:00:44]}  Qg3 {[%clk 0:00:34]} 33. Nc2 {[%clk 0:00:30]}  Rd6 {[%clk 0:00:34]} 34. Qe2 {[%clk 0:00:17]}  Rg6 {[%clk 0:00:29]} 35. Ne3 {[%clk 0:00:14]}  Bxf3 {[%clk 0:00:27]} 36. Qf2 {[%clk 0:00:14]}  Be4 {[%clk 0:00:27]} 37. Qxg3 {[%clk 0:00:13]}  hxg3 {[%clk 0:00:27]} 38. Rf1 {[%clk 0:00:12]}  Rf6 {[%clk 0:00:26]} 39. Rd1 {[%clk 0:00:11]}  Rc6 {[%clk 0:00:25]} 40. Nf1 {[%clk 0:00:11]}  Rc2 {[%clk 0:00:25]} 41. Rd2 {[%clk 0:00:08]}  Rc1 {[%clk 0:00:20]} 42. h4 {[%clk 0:00:06]}  Kh6 {[%clk 0:00:19]} 43. b4 {[%clk 0:00:07]}  Bc6 {[%clk 0:00:19]} 44. Rc2 {[%clk 0:00:05]}  Rxc2 {[%clk 0:00:18]} 45. Nxg3 {[%clk 0:00:06]}  Rxg2+ {[%clk 0:00:19]} 0-1


[Site "https://www.chess.com"]

[Event "Titled Tuesday Blitz October 26 2021"]
[White "Nesterov, Arseniy"]
[Black "Jobava, Baadur"]
[WhiteFideId "24198455"]
[BlackFideId "13601520"]
[WhiteElo "2494"]
[BlackElo "2731"]
[Result "1-0"]
[Round "06"]
[TimeControl "180+1"]
[Date "2021.10.26"]
[WhiteClock "0:00:07"]
[BlackClock "0:00:03"]

1. d4 {[%clk 0:03:00]}  Nf6 {[%clk 0:02:58]} 2. c4 {[%clk 0:03:01]}  c5 {[%clk 0:02:58]} 3. d5 {[%clk 0:03:01]}  g6 {[%clk 0:02:58]} 4. Nc3 {[%clk 0:03:01]}  Bg7 {[%clk 0:02:58]} 5. e4 {[%clk 0:03:02]}  d6 {[%clk 0:02:57]} 6. Be2 {[%clk 0:03:02]}  O-O {[%clk 0:02:57]} 7. Be3 {[%clk 0:03:03]}  e6 {[%clk 0:02:55]} 8. Nf3 {[%clk 0:03:03]}  exd5 {[%clk 0:02:55]} 9. cxd5 {[%clk 0:03:04]}  Bg4 {[%clk 0:02:54]} 10. Nd2 {[%clk 0:03:04]}  Bxe2 {[%clk 0:02:54]} 11. Qxe2 {[%clk 0:03:05]}  Re8 {[%clk 0:02:54]} 12. O-O {[%clk 0:03:04]}  Nbd7 {[%clk 0:02:52]} 13. Rfe1 {[%clk 0:03:03]}  a6 {[%clk 0:02:36]} 14. a4 {[%clk 0:03:03]}  b6 {[%clk 0:02:32]} 15. h3 {[%clk 0:03:02]}  Qc7 {[%clk 0:02:22]} 16. Bf4 {[%clk 0:03:02]}  Nh5 {[%clk 0:02:19]} 17. Bh2 {[%clk 0:03:01]}  f5 {[%clk 0:02:14]} 18. g4 {[%clk 0:02:04]}  Nhf6 {[%clk 0:02:13]} 19. gxf5 {[%clk 0:01:55]}  gxf5 {[%clk 0:02:14]} 20. Kh1 {[%clk 0:01:48]}  Kh8 {[%clk 0:02:11]} 21. f3 {[%clk 0:01:27]}  Ne5 {[%clk 0:01:43]} 22. f4 {[%clk 0:01:18]}  Ng6 {[%clk 0:01:42]} 23. e5 {[%clk 0:01:19]}  Qb7 {[%clk 0:01:30]} 24. exf6 {[%clk 0:01:11]}  Rxe2 {[%clk 0:01:31]} 25. fxg7+ {[%clk 0:01:12]}  Kxg7 {[%clk 0:01:31]} 26. Rxe2 {[%clk 0:01:13]}  b5 {[%clk 0:01:31]} 27. axb5 {[%clk 0:00:54]}  axb5 {[%clk 0:01:32]} 28. Rxa8 {[%clk 0:00:54]}  Qxa8 {[%clk 0:01:33]} 29. Nxb5 {[%clk 0:00:52]}  Qxd5+ {[%clk 0:01:24]} 30. Kg1 {[%clk 0:00:52]}  Qd3 {[%clk 0:01:20]} 31. Nc3 {[%clk 0:00:50]}  d5 {[%clk 0:01:16]} 32. Kf2 {[%clk 0:00:32]}  d4 {[%clk 0:01:09]} 33. Na4 {[%clk 0:00:21]}  Qxh3 {[%clk 0:01:04]} 34. Nf3 {[%clk 0:00:15]}  d3 {[%clk 0:00:51]} 35. Re3 {[%clk 0:00:12]}  c4 {[%clk 0:00:39]} 36. Nc3 {[%clk 0:00:11]}  h5 {[%clk 0:00:35]} 37. b3 {[%clk 0:00:06]}  cxb3 {[%clk 0:00:34]} 38. Rxd3 {[%clk 0:00:07]}  h4 {[%clk 0:00:27]} 39. Ne2 {[%clk 0:00:05]}  b2 {[%clk 0:00:23]} 40. Rb3 {[%clk 0:00:05]}  Qg4 {[%clk 0:00:23]} 41. Rxb2 {[%clk 0:00:05]}  h3 {[%clk 0:00:22]} 42. Bg3 {[%clk 0:00:06]}  Qh5 {[%clk 0:00:14]} 43. Rb7+ {[%clk 0:00:06]}  Kf6 {[%clk 0:00:14]} 44. Rb6+ {[%clk 0:00:06]}  Ke7 {[%clk 0:00:14]} 45. Ned4 {[%clk 0:00:05]}  Qg4 {[%clk 0:00:11]} 46. Re6+ {[%clk 0:00:04]}  Kd8 {[%clk 0:00:09]} 47. Rf6 {[%clk 0:00:03]}  Ne7 {[%clk 0:00:06]} 48. Rd6+ {[%clk 0:00:03]}  Kc7 {[%clk 0:00:05]} 49. Re6 {[%clk 0:00:03]}  Nd5 {[%clk 0:00:04]} 50. Re5 {[%clk 0:00:04]}  Nf6 {[%clk 0:00:04]} 51. Nxf5 {[%clk 0:00:03]}  Qg8 {[%clk 0:00:03]} 52. Ne3 {[%clk 0:00:03]}  Qa2+ {[%clk 0:00:01]} 53. Kg1 {[%clk 0:00:02]}  Qe2 {[%clk 0:00:01]} 54. Nd4 {[%clk 0:00:02]}  Qd3 {[%clk 0:00:01]} 55. Ndf5 {[%clk 0:00:02]}  Ne4 {[%clk 0:00:01]} 56. Kh2 {[%clk 0:00:02]}  Nxg3 {[%clk 0:00:01]} 57. Kxg3 {[%clk 0:00:02]}  h2 {[%clk 0:00:02]} 58. Kxh2 {[%clk 0:00:03]}  Qe2+ {[%clk 0:00:03]} 59. Kg3 {[%clk 0:00:03]}  Qe1+ {[%clk 0:00:03]} 60. Kg4 {[%clk 0:00:04]}  Qg1+ {[%clk 0:00:04]} 61. Kh5 {[%clk 0:00:04]}  Qf2 {[%clk 0:00:04]} 62. Kg5 {[%clk 0:00:05]}  Qg1+ {[%clk 0:00:04]} 63. Ng4 {[%clk 0:00:05]}  Qf1 {[%clk 0:00:04]} 64. Nd4 {[%clk 0:00:05]}  Qd1 {[%clk 0:00:03]} 65. Ne6+ {[%clk 0:00:05]}  Kd6 {[%clk 0:00:04]} 66. f5 {[%clk 0:00:06]}  Ke7 {[%clk 0:00:03]} 67. Nf4+ {[%clk 0:00:06]}  Kf7 {[%clk 0:00:03]} 68. Nh6+ {[%clk 0:00:06]}  Kf8 {[%clk 0:00:03]} 69. Ng6+ {[%clk 0:00:06]}  Kg7 {[%clk 0:00:03]} 70. Re7# {[%clk 0:00:07]} 1-0


[Site "https://www.chess.com"]

[Event "Titled Tuesday Blitz October 26 2021"]
[White "Obolenskikh, Dmitry"]
[Black "Solon, Nathan"]
[WhiteFideId "4156013"]
[BlackFideId "2017229"]
[WhiteElo "2541"]
[BlackElo "2627"]
[Result "1-0"]
[Round "06"]
[TimeControl "180+1"]
[Date "2021.10.26"]
[WhiteClock "0:00:15"]
[BlackClock "0:00:02"]

1. Nf3 {[%clk 0:03:00]}  d5 {[%clk 0:02:58]} 2. e3 {[%clk 0:03:00]}  Nf6 {[%clk 0:02:58]} 3. c4 {[%clk 0:03:00]}  e6 {[%clk 0:02:57]} 4. b3 {[%clk 0:02:59]}  c5 {[%clk 0:02:56]} 5. Bb2 {[%clk 0:02:58]}  Nc6 {[%clk 0:02:57]} 6. cxd5 {[%clk 0:02:58]}  Nxd5 {[%clk 0:02:57]} 7. Nc3 {[%clk 0:02:58]}  Ndb4 {[%clk 0:02:38]} 8. Qb1 {[%clk 0:02:57]}  a6 {[%clk 0:02:06]} 9. h4 {[%clk 0:02:40]}  h6 {[%clk 0:02:03]} 10. Rh3 {[%clk 0:02:30]}  b6 {[%clk 0:02:01]} 11. Rg3 {[%clk 0:02:27]}  Bb7 {[%clk 0:01:57]} 12. a3 {[%clk 0:02:26]}  Nd5 {[%clk 0:01:54]} 13. Nxd5 {[%clk 0:02:26]}  Qxd5 {[%clk 0:01:54]} 14. Bxg7 {[%clk 0:02:21]}  Bxg7 {[%clk 0:01:33]} 15. Rxg7 {[%clk 0:02:19]}  Ne5 {[%clk 0:01:29]} 16. Qb2 {[%clk 0:02:15]}  Nxf3+ {[%clk 0:01:16]} 17. gxf3 {[%clk 0:02:15]}  Ke7 {[%clk 0:00:59]} 18. O-O-O {[%clk 0:02:01]}  Rhg8 {[%clk 0:00:53]} 19. Rxg8 {[%clk 0:01:54]}  Rxg8 {[%clk 0:00:54]} 20. f4 {[%clk 0:01:40]}  Rg1 {[%clk 0:00:42]} 21. Bc4 {[%clk 0:01:00]}  Rxd1+ {[%clk 0:00:41]} 22. Kxd1 {[%clk 0:01:01]}  Qh1+ {[%clk 0:00:42]} 23. Kc2 {[%clk 0:00:59]}  Qxh4 {[%clk 0:00:37]} 24. Qe5 {[%clk 0:00:59]}  Bf3 {[%clk 0:00:27]} 25. Qc7+ {[%clk 0:00:58]}  Kf8 {[%clk 0:00:28]} 26. Qxb6 {[%clk 0:00:57]}  Qxf2 {[%clk 0:00:25]} 27. Qxc5+ {[%clk 0:00:57]}  Kg8 {[%clk 0:00:25]} 28. Bxa6 {[%clk 0:00:53]}  Qg1 {[%clk 0:00:18]} 29. Qd4 {[%clk 0:00:39]}  h5 {[%clk 0:00:15]} 30. a4 {[%clk 0:00:30]}  h4 {[%clk 0:00:15]} 31. Qd8+ {[%clk 0:00:29]}  Kg7 {[%clk 0:00:15]} 32. Qxh4 {[%clk 0:00:29]}  Qd1+ {[%clk 0:00:15]} 33. Kc3 {[%clk 0:00:26]}  Qc1+ {[%clk 0:00:16]} 34. Kb4 {[%clk 0:00:26]}  Qxd2+ {[%clk 0:00:16]} 35. Ka3 {[%clk 0:00:24]}  Qc1+ {[%clk 0:00:15]} 36. Kb4 {[%clk 0:00:25]}  Qd2+ {[%clk 0:00:16]} 37. Kb5 {[%clk 0:00:21]}  Qxe3 {[%clk 0:00:14]} 38. Qg5+ {[%clk 0:00:21]}  Kf8 {[%clk 0:00:14]} 39. Qc5+ {[%clk 0:00:16]}  Qxc5+ {[%clk 0:00:13]} 40. Kxc5 {[%clk 0:00:17]}  Bd1 {[%clk 0:00:11]} 41. Bc4 {[%clk 0:00:16]}  Ke7 {[%clk 0:00:11]} 42. a5 {[%clk 0:00:16]}  Kd8 {[%clk 0:00:11]} 43. Kd6 {[%clk 0:00:16]}  Kc8 {[%clk 0:00:09]} 44. b4 {[%clk 0:00:16]}  Kb7 {[%clk 0:00:10]} 45. b5 {[%clk 0:00:16]}  Bf3 {[%clk 0:00:09]} 46. Ke7 {[%clk 0:00:15]}  Bh5 {[%clk 0:00:08]} 47. Kf6 {[%clk 0:00:15]}  Ka7 {[%clk 0:00:08]} 48. Bd3 {[%clk 0:00:15]}  Kb7 {[%clk 0:00:07]} 49. Ke5 {[%clk 0:00:15]}  Ka7 {[%clk 0:00:06]} 50. Kd6 {[%clk 0:00:15]}  Kb7 {[%clk 0:00:05]} 51. Be4+ {[%clk 0:00:15]}  Ka7 {[%clk 0:00:06]} 52. Kc7 {[%clk 0:00:15]}  f5 {[%clk 0:00:03]} 53. Bd3 {[%clk 0:00:15]}  Bf3 {[%clk 0:00:02]} 54. b6+ {[%clk 0:00:15]}  Ka8 {[%clk 0:00:02]} 55. a6 {[%clk 0:00:15]}  e5 {[%clk 0:00:02]} 56. fxe5 {[%clk 0:00:15]}  f4 {[%clk 0:00:02]} 57. e6 {[%clk 0:00:15]} 1-0


[Site "https://www.chess.com"]

[Event "Titled Tuesday Blitz October 26 2021"]
[White "Perez Ponsa, Federico"]
[Black "Le, Tuan Minh"]
[WhiteFideId "117927"]
[BlackFideId "12401153"]
[WhiteElo "2672"]
[BlackElo "2450"]
[Result "0-1"]
[Round "06"]
[TimeControl "180+1"]
[Date "2021.10.26"]
[WhiteClock "0:00:34"]
[BlackClock "0:00:20"]

1. e4 {[%clk 0:02:59]}  c5 {[%clk 0:02:59]} 2. Nf3 {[%clk 0:02:59]}  Nf6 {[%clk 0:02:59]} 3. e5 {[%clk 0:02:55]}  Nd5 {[%clk 0:03:00]} 4. Nc3 {[%clk 0:02:56]}  e6 {[%clk 0:03:00]} 5. Ne4 {[%clk 0:02:56]}  f5 {[%clk 0:03:01]} 6. Nc3 {[%clk 0:02:57]}  Ne7 {[%clk 0:03:01]} 7. d4 {[%clk 0:02:55]}  cxd4 {[%clk 0:03:02]} 8. Nxd4 {[%clk 0:02:54]}  a6 {[%clk 0:03:02]} 9. Qh5+ {[%clk 0:02:37]}  Ng6 {[%clk 0:02:43]} 10. Bg5 {[%clk 0:02:30]}  Be7 {[%clk 0:02:39]} 11. h4 {[%clk 0:02:30]}  O-O {[%clk 0:02:37]} 12. Nf3 {[%clk 0:02:25]}  Nc6 {[%clk 0:02:30]} 13. Bxe7 {[%clk 0:02:20]}  Ngxe7 {[%clk 0:02:28]} 14. O-O-O {[%clk 0:02:15]}  Qa5 {[%clk 0:02:22]} 15. Qg5 {[%clk 0:02:09]}  b5 {[%clk 0:02:16]} 16. Kb1 {[%clk 0:02:02]}  h6 {[%clk 0:01:57]} 17. Qd2 {[%clk 0:01:55]}  Ng6 {[%clk 0:01:37]} 18. h5 {[%clk 0:01:34]}  Ngxe5 {[%clk 0:01:36]} 19. Nxe5 {[%clk 0:01:33]}  Nxe5 {[%clk 0:01:37]} 20. f4 {[%clk 0:01:34]}  Ng4 {[%clk 0:01:17]} 21. a3 {[%clk 0:01:30]}  Rf7 {[%clk 0:01:07]} 22. Qd4 {[%clk 0:01:30]}  Rb8 {[%clk 0:00:59]} 23. Be2 {[%clk 0:01:30]}  b4 {[%clk 0:00:59]} 24. axb4 {[%clk 0:01:30]}  Rxb4 {[%clk 0:00:57]} 25. Qa7 {[%clk 0:01:18]}  d5 {[%clk 0:00:49]} 26. Qa8 {[%clk 0:01:14]}  Qc7 {[%clk 0:00:41]} 27. Bxg4 {[%clk 0:01:06]}  Qxc3 {[%clk 0:00:35]} 28. b3 {[%clk 0:00:58]}  fxg4 {[%clk 0:00:35]} 29. Rhe1 {[%clk 0:00:52]}  Rc7 {[%clk 0:00:25]} 30. Re2 {[%clk 0:00:48]}  Qc6 {[%clk 0:00:24]} 31. Qxc6 {[%clk 0:00:41]}  Rxc6 {[%clk 0:00:25]} 32. g3 {[%clk 0:00:42]}  Kf7 {[%clk 0:00:25]} 33. Kb2 {[%clk 0:00:42]}  a5 {[%clk 0:00:25]} 34. Ra1 {[%clk 0:00:42]}  Ra6 {[%clk 0:00:24]} 35. Kc3 {[%clk 0:00:41]}  d4+ {[%clk 0:00:20]} 36. Kd3 {[%clk 0:00:40]}  Bd7 {[%clk 0:00:20]} 37. Re5 {[%clk 0:00:40]}  a4 {[%clk 0:00:20]} 38. bxa4 {[%clk 0:00:40]}  Raxa4 {[%clk 0:00:20]} 39. Rxa4 {[%clk 0:00:35]}  Rxa4 {[%clk 0:00:21]} 40. Re4 {[%clk 0:00:34]}  Bb5+ {[%clk 0:00:20]} 41. Kd2 {[%clk 0:00:34]}  Ra3 {[%clk 0:00:20]} 0-1


[Site "https://www.chess.com"]

[Event "Titled Tuesday Blitz October 26 2021"]
[White "Petrovskyi, Vadym"]
[Black "Ibarra Jerez, Jose Carlos"]
[WhiteFideId "14165210"]
[BlackFideId "2226332"]
[WhiteElo "2334"]
[BlackElo "2626"]
[Result "0-1"]
[Round "06"]
[TimeControl "180+1"]
[Date "2021.10.26"]
[WhiteClock "0:00:26"]
[BlackClock "0:00:28"]

1. e4 {[%clk 0:03:00]}  e6 {[%clk 0:02:58]} 2. d4 {[%clk 0:03:00]}  d5 {[%clk 0:02:58]} 3. Nc3 {[%clk 0:03:00]}  Nf6 {[%clk 0:02:58]} 4. e5 {[%clk 0:03:01]}  Nfd7 {[%clk 0:02:58]} 5. f4 {[%clk 0:03:01]}  c5 {[%clk 0:02:58]} 6. Nf3 {[%clk 0:03:01]}  Nc6 {[%clk 0:02:59]} 7. Be3 {[%clk 0:03:01]}  Be7 {[%clk 0:02:59]} 8. Be2 {[%clk 0:02:59]}  O-O {[%clk 0:02:57]} 9. O-O {[%clk 0:02:57]}  b6 {[%clk 0:02:57]} 10. Qd2 {[%clk 0:02:53]}  f5 {[%clk 0:02:55]} 11. exf6 {[%clk 0:02:46]}  Nxf6 {[%clk 0:02:54]} 12. Bb5 {[%clk 0:02:45]}  Bb7 {[%clk 0:02:47]} 13. Rae1 {[%clk 0:02:44]}  Ng4 {[%clk 0:02:44]} 14. Bxc6 {[%clk 0:02:42]}  Bxc6 {[%clk 0:02:43]} 15. Ne5 {[%clk 0:02:42]}  Nxe5 {[%clk 0:02:38]} 16. fxe5 {[%clk 0:02:40]}  Qd7 {[%clk 0:02:26]} 17. Qd3 {[%clk 0:02:30]}  Rxf1+ {[%clk 0:02:15]} 18. Rxf1 {[%clk 0:02:30]}  b5 {[%clk 0:02:16]} 19. dxc5 {[%clk 0:02:01]}  b4 {[%clk 0:02:15]} 20. Ne2 {[%clk 0:02:00]}  Bb5 {[%clk 0:02:15]} 21. Qd2 {[%clk 0:02:01]}  Qc7 {[%clk 0:02:08]} 22. Rf2 {[%clk 0:01:44]}  Bxe2 {[%clk 0:02:03]} 23. Rxe2 {[%clk 0:01:41]}  Bxc5 {[%clk 0:02:00]} 24. Bxc5 {[%clk 0:01:31]}  Qxc5+ {[%clk 0:02:00]} 25. Qe3 {[%clk 0:01:31]}  d4 {[%clk 0:01:27]} 26. Qd3 {[%clk 0:01:28]}  Rd8 {[%clk 0:01:24]} 27. h3 {[%clk 0:01:27]}  Rd5 {[%clk 0:01:23]} 28. Re4 {[%clk 0:01:02]}  a5 {[%clk 0:01:09]} 29. Kh2 {[%clk 0:01:00]}  Qc7 {[%clk 0:00:55]} 30. Qe2 {[%clk 0:00:58]}  a4 {[%clk 0:00:51]} 31. b3 {[%clk 0:00:44]}  a3 {[%clk 0:00:48]} 32. Kh1 {[%clk 0:00:41]}  h6 {[%clk 0:00:48]} 33. Qd3 {[%clk 0:00:36]}  Rxe5 {[%clk 0:00:43]} 34. Qxd4 {[%clk 0:00:35]}  Rd5 {[%clk 0:00:43]} 35. Qxb4 {[%clk 0:00:31]}  Qxc2 {[%clk 0:00:32]} 36. Rxe6 {[%clk 0:00:27]}  Rd1+ {[%clk 0:00:30]} 37. Kh2 {[%clk 0:00:26]}  Qc7+ {[%clk 0:00:28]} 0-1


[Site "https://www.chess.com"]

[Event "Titled Tuesday Blitz October 26 2021"]
[White "Sonis, Francesco"]
[Black "Bortnyk, Olexandr"]
[WhiteFideId "895733"]
[BlackFideId "14120828"]
[WhiteElo "2373"]
[BlackElo "2723"]
[Result "1-0"]
[Round "06"]
[TimeControl "180+1"]
[Date "2021.10.26"]
[WhiteClock "0:00:30"]
[BlackClock "0:00:05"]

1. d4 {[%clk 0:02:04]}  g6 {[%clk 0:02:56]} 2. c4 {[%clk 0:02:05]}  Bg7 {[%clk 0:02:56]} 3. Nf3 {[%clk 0:02:05]}  d6 {[%clk 0:02:55]} 4. Nc3 {[%clk 0:02:05]}  Bg4 {[%clk 0:02:55]} 5. e3 {[%clk 0:02:04]}  c6 {[%clk 0:02:52]} 6. Be2 {[%clk 0:02:04]}  Nd7 {[%clk 0:02:53]} 7. O-O {[%clk 0:02:04]}  Ngf6 {[%clk 0:02:47]} 8. h3 {[%clk 0:02:05]}  Bxf3 {[%clk 0:02:48]} 9. Bxf3 {[%clk 0:02:06]}  O-O {[%clk 0:02:48]} 10. b3 {[%clk 0:02:02]}  Qa5 {[%clk 0:02:48]} 11. Bb2 {[%clk 0:02:01]}  e5 {[%clk 0:02:49]} 12. Be2 {[%clk 0:02:00]}  Rfe8 {[%clk 0:02:49]} 13. dxe5 {[%clk 0:01:59]}  dxe5 {[%clk 0:02:26]} 14. Qc2 {[%clk 0:01:58]}  e4 {[%clk 0:02:25]} 15. Rfd1 {[%clk 0:01:56]}  Qg5 {[%clk 0:02:24]} 16. Rd4 {[%clk 0:01:51]}  Qf5 {[%clk 0:01:39]} 17. Rad1 {[%clk 0:01:50]}  a5 {[%clk 0:01:38]} 18. g4 {[%clk 0:01:18]}  Qg5 {[%clk 0:01:04]} 19. Rxd7 {[%clk 0:01:14]}  Nxd7 {[%clk 0:01:05]} 20. Rxd7 {[%clk 0:01:13]}  Qh4 {[%clk 0:01:01]} 21. Kg2 {[%clk 0:01:10]}  h5 {[%clk 0:00:55]} 22. Na4 {[%clk 0:00:57]}  hxg4 {[%clk 0:00:50]} 23. hxg4 {[%clk 0:00:58]}  Be5 {[%clk 0:00:49]} 24. Bxe5 {[%clk 0:00:50]}  Rxe5 {[%clk 0:00:50]} 25. Qd2 {[%clk 0:00:37]}  Rg5 {[%clk 0:00:27]} 26. Rd8+ {[%clk 0:00:36]}  Rxd8 {[%clk 0:00:25]} 27. Qxd8+ {[%clk 0:00:37]}  Kh7 {[%clk 0:00:26]} 28. Qd6 {[%clk 0:00:36]}  Qh6 {[%clk 0:00:22]} 29. Qh2 {[%clk 0:00:34]}  Qxh2+ {[%clk 0:00:21]} 30. Kxh2 {[%clk 0:00:35]}  Re5 {[%clk 0:00:21]} 31. c5 {[%clk 0:00:33]}  Rd5 {[%clk 0:00:21]} 32. Kg3 {[%clk 0:00:30]}  Rd2 {[%clk 0:00:21]} 33. Bc4 {[%clk 0:00:31]}  Kg7 {[%clk 0:00:19]} 34. Nc3 {[%clk 0:00:31]}  f5 {[%clk 0:00:19]} 35. gxf5 {[%clk 0:00:31]}  gxf5 {[%clk 0:00:20]} 36. a4 {[%clk 0:00:30]}  Kf6 {[%clk 0:00:18]} 37. Ne2 {[%clk 0:00:30]}  Rd1 {[%clk 0:00:16]} 38. Kg2 {[%clk 0:00:29]}  Ke5 {[%clk 0:00:13]} 39. Nf4 {[%clk 0:00:29]}  Rd8 {[%clk 0:00:11]} 40. Ng6+ {[%clk 0:00:28]}  Kf6 {[%clk 0:00:11]} 41. Nf4 {[%clk 0:00:29]}  Ke5 {[%clk 0:00:11]} 42. Kf1 {[%clk 0:00:29]}  Rd2 {[%clk 0:00:11]} 43. Kg1 {[%clk 0:00:28]}  Rd1+ {[%clk 0:00:11]} 44. Kg2 {[%clk 0:00:28]}  Rd2 {[%clk 0:00:12]} 45. Ne6 {[%clk 0:00:28]}  Rd7 {[%clk 0:00:12]} 46. Kf1 {[%clk 0:00:27]}  Rd2 {[%clk 0:00:12]} 47. Ke1 {[%clk 0:00:28]}  Rc2 {[%clk 0:00:09]} 48. Nd8 {[%clk 0:00:28]}  f4 {[%clk 0:00:08]} 49. Nf7+ {[%clk 0:00:27]}  Kf6 {[%clk 0:00:07]} 50. Nd6 {[%clk 0:00:27]}  Ke5 {[%clk 0:00:07]} 51. Nxb7 {[%clk 0:00:27]}  f3 {[%clk 0:00:05]} 52. Nd8 {[%clk 0:00:27]}  Rc1+ {[%clk 0:00:03]} 53. Kd2 {[%clk 0:00:27]}  Ra1 {[%clk 0:00:04]} 54. Nxc6+ {[%clk 0:00:27]}  Kf6 {[%clk 0:00:05]} 55. Nd4 {[%clk 0:00:28]}  Ra2+ {[%clk 0:00:05]} 56. Nc2 {[%clk 0:00:29]}  Ke5 {[%clk 0:00:05]} 57. Kc1 {[%clk 0:00:29]}  Kf5 {[%clk 0:00:03]} 58. Kb1 {[%clk 0:00:29]}  Rxc2 {[%clk 0:00:04]} 59. Kxc2 {[%clk 0:00:30]}  Ke5 {[%clk 0:00:05]} 60. Kc3 {[%clk 0:00:30]} 1-0


[Site "https://www.chess.com"]

[Event "Titled Tuesday Blitz October 26 2021"]
[White "Trost, Edvin"]
[Black "Hakobyan, Aram"]
[WhiteFideId "1729519"]
[BlackFideId "13306677"]
[WhiteElo "2026"]
[BlackElo "2557"]
[Result "0-1"]
[Round "06"]
[TimeControl "180+1"]
[Date "2021.10.26"]
[WhiteClock "0:00:01"]
[BlackClock "0:01:07"]

1. Nf3 {[%clk 0:02:56]}  d5 {[%clk 0:02:58]} 2. e3 {[%clk 0:02:55]}  c6 {[%clk 0:02:52]} 3. c4 {[%clk 0:02:54]}  Nf6 {[%clk 0:02:51]} 4. Nc3 {[%clk 0:02:55]}  e6 {[%clk 0:02:50]} 5. b3 {[%clk 0:02:53]}  Nbd7 {[%clk 0:02:50]} 6. Bb2 {[%clk 0:02:53]}  Bd6 {[%clk 0:02:50]} 7. Rc1 {[%clk 0:02:53]}  O-O {[%clk 0:02:50]} 8. Be2 {[%clk 0:02:53]}  a6 {[%clk 0:02:49]} 9. Rg1 {[%clk 0:02:50]}  e5 {[%clk 0:02:45]} 10. g4 {[%clk 0:02:50]}  e4 {[%clk 0:02:35]} 11. Nd4 {[%clk 0:02:48]}  Ne5 {[%clk 0:02:35]} 12. g5 {[%clk 0:02:49]}  Nfd7 {[%clk 0:02:28]} 13. cxd5 {[%clk 0:02:47]}  Nc5 {[%clk 0:02:27]} 14. Rb1 {[%clk 0:01:36]}  Ncd3+ {[%clk 0:02:20]} 15. Bxd3 {[%clk 0:01:36]}  Nxd3+ {[%clk 0:02:21]} 16. Ke2 {[%clk 0:01:37]}  c5 {[%clk 0:02:18]} 17. Nc2 {[%clk 0:01:25]}  Bf5 {[%clk 0:02:05]} 18. Ne1 {[%clk 0:01:21]}  Ne5 {[%clk 0:02:05]} 19. Qc2 {[%clk 0:01:17]}  Nf3 {[%clk 0:01:56]} 20. Rg2 {[%clk 0:01:05]}  Re8 {[%clk 0:01:56]} 21. Kd1 {[%clk 0:01:01]}  Bh3 {[%clk 0:01:43]} 22. Rg3 {[%clk 0:00:41]}  Bxg3 {[%clk 0:01:40]} 23. hxg3 {[%clk 0:00:42]}  Qxg5 {[%clk 0:01:29]} 24. Nxf3 {[%clk 0:00:25]}  Bg4 {[%clk 0:01:29]} 25. Kc1 {[%clk 0:00:13]}  Bxf3 {[%clk 0:01:29]} 26. Ba1 {[%clk 0:00:09]}  b5 {[%clk 0:01:28]} 27. b4 {[%clk 0:00:07]}  c4 {[%clk 0:01:27]} 28. a4 {[%clk 0:00:04]}  Rab8 {[%clk 0:01:26]} 29. axb5 {[%clk 0:00:02]}  axb5 {[%clk 0:01:27]} 30. Kb2 {[%clk 0:00:03]}  Qf6 {[%clk 0:01:21]} 31. Rc1 {[%clk 0:00:02]}  Ra8 {[%clk 0:01:21]} 32. Kb1 {[%clk 0:00:02]}  Ra6 {[%clk 0:01:15]} 33. Bb2 {[%clk 0:00:01]}  Rea8 {[%clk 0:01:16]} 34. Re1 {[%clk 0:00:01]}  h5 {[%clk 0:01:14]} 35. Kc1 {[%clk 0:00:01]}  Qd6 {[%clk 0:01:07]} 0-1


[Site "https://www.chess.com"]